bitfinex-derivatives/quotes_BTCF0:USTF0_20250630
["timestamp","ask_amount","ask_price","bid_price","bid_amount"]
[1751321793170,0.001,107330.0,107320.0,1.29291744]
[1751321793369,0.001,107330.0,107320.0,0.98291744]
[1751321793570,0.2172945,107330.0,107320.0,0.77637189]
[1751321794070,0.2192945,107330.0,107320.0,0.77637189]
[1751321795068,0.2910945,107330.0,107320.0,0.77637189]
[1751321795468,0.8634945,107330.0,107320.0,0.3313119]
[1751321795772,1.1482224,107330.0,107320.0,0.55937189]
[1751321795973,1.35476795,107330.0,107320.0,0.55937189]
[1751321796169,1.67476795,107330.0,107320.0,0.1863119]
[1751321801472,1.67476795,107330.0,107320.0,0.18681496]
[1751321804975,1.69854138,107330.0,107320.0,0.18681496]
[1751321811778,1.69835674,107330.0,107320.0,0.18681496]
[1751321813679,1.69835674,107330.0,107320.0,0.55987495]
[1751321814779,1.69835674,107330.0,107320.0,0.76623586]
[1751321814975,1.69835674,107330.0,107320.0,0.55987495]
[1751321815176,0.1863119,107320.0,107310.0,0.67411231]
[1751321815375,0.73994624,107320.0,107310.0,1.0471723]
[1751321816981,0.73994624,107320.0,107310.0,1.0481723]
[1751321817480,0.74094624,107320.0,107310.0,1.0481723]
[1751321817782,0.74097588,107320.0,107310.0,0.84181139]
[1751321819684,0.74097588,107320.0,107310.0,0.79523079]
[1751321822387,0.67087588,107320.0,107310.0,0.79523079]
[1751321822684,0.67087588,107320.0,107310.0,0.86873079]
[1751321823584,0.52747588,107320.0,107310.0,0.86873079]
[1751321824086,0.32108533,107320.0,107310.0,0.86873079]
[1751321826884,0.21108533,107320.0,107310.0,0.86873079]
[1751321829488,0.58108533,107320.0,107310.0,0.86873079]
[1751321829686,0.21108533,107320.0,107310.0,0.86873079]
[1751321830288,0.41747588,107320.0,107310.0,0.86873079]
[1751321831986,0.76747588,107320.0,107310.0,0.51575999]
[1751321832185,0.1863466,107300.0,107290.0,0.07454474]
[1751321832387,0.186364,107290.0,107280.0,0.22027193]
[1751321832590,0.72724694,107290.0,107280.0,0.07337193]
[1751321832791,0.1863813,107280.0,107270.0,0.54712704]
[1751321832993,1.36617185,107280.0,107270.0,0.84564229]
[1751321833686,1.36017185,107280.0,107270.0,0.84564229]
[1751321834088,1.36017185,107280.0,107270.0,0.70584789]
[1751321834292,0.77711419,107280.0,107270.0,0.70784789]
[1751321834488,0.77709479,107280.0,107270.0,0.70784789]
[1751321835287,0.77709479,107280.0,107270.0,0.78014789]
[1751321836192,0.77709479,107280.0,107270.0,0.78114789]
[1751321836393,1.08709479,107280.0,107270.0,0.78114789]
[1751321836789,0.77709479,107280.0,107270.0,0.78114789]
[1751321837494,0.7523813,107280.0,107270.0,0.78114789]
[1751321837794,0.7523813,107280.0,107270.0,0.85463589]
[1751321841389,0.572,107280.0,107270.0,1.06102644]
[1751321841593,0.7583813,107280.0,107270.0,1.06102644]
[1751321847503,0.7583813,107280.0,107270.0,0.85463589]
[1751321848102,1.1083813,107280.0,107270.0,0.85463589]
[1751321848302,1.39007185,107280.0,107270.0,0.85463589]
[1751321848900,1.39007185,107280.0,107270.0,0.4815759]
[1751321849094,1.39007185,107280.0,107270.0,0.70733589]
[1751321849298,1.45947185,107280.0,107270.0,0.70733589]
[1751321850405,1.93053022,107280.0,107270.0,0.076488]
[1751321850699,1.72413967,107280.0,107270.0,0.2628867]
[1751321850899,1.72413967,107280.0,107270.0,0.076488]
[1751321851108,1.93053022,107280.0,107270.0,0.076488]
[1751321851305,1.93053022,107280.0,107270.0,0.2628867]
[1751321851706,1.72413967,107280.0,107270.0,0.2628867]
[1751321851903,1.72413967,107280.0,107270.0,0.076488]
[1751321852405,1.72413967,107280.0,107270.0,0.2628867]
[1751321853106,1.72413967,107280.0,107270.0,0.1893987]
[1751321854916,1.93053022,107280.0,107270.0,0.1893987]
[1751321855817,1.72413967,107280.0,107270.0,0.1893987]
[1751321856213,1.65453967,107280.0,107270.0,0.1893987]
[1751321856507,1.44814912,107280.0,107270.0,0.70895869]
[1751321856920,1.65453967,107280.0,107270.0,0.70895869]
[1751321857312,1.72463967,107280.0,107270.0,0.70895869]
[1751321857515,1.72463967,107280.0,107270.0,0.63315869]
[1751321858623,1.72463967,107280.0,107270.0,0.1893987]
[1751321858824,1.72463967,107280.0,107270.0,0.003]
[1751321861020,1.93103022,107280.0,107270.0,0.003]
[1751321861423,1.98658231,107280.0,107270.0,0.003]
[1751321861818,0.39278925,107270.0,107260.0,0.00093227]
[1751321862011,0.98485707,107270.0,107260.0,0.00093227]
[1751321862412,0.98485707,107270.0,107260.0,0.18734837]
[1751321863523,0.98485707,107270.0,107260.0,0.19034837]
[1751321865325,0.98485707,107270.0,107260.0,0.00393227]
[1751321865721,0.21166652,107270.0,107260.0,1.09979891]
[1751321865917,0.02526782,107270.0,107260.0,1.32307659]
[1751321866219,0.186375,107290.0,107280.0,0.1863813]
[1751321866426,0.05555209,107300.0,107290.0,0.186364]
[1751321866619,1.13407486,107300.0,107290.0,1.05407874]
[1751321866825,1.13407486,107300.0,107290.0,0.59375999]
[1751321867025,1.13407486,107300.0,107290.0,0.78012399]
[1751321867227,0.56147486,107300.0,107290.0,0.78012399]
[1751321867419,1.13419486,107300.0,107290.0,0.78012399]
[1751321867614,1.13719486,107300.0,107290.0,0.78012399]
[1751321868024,0.56547486,107300.0,107290.0,0.78012399]
[1751321868223,1.13811486,107300.0,107290.0,0.78012399]
[1751321886546,0.56547486,107300.0,107290.0,0.78012399]
[1751321886745,1.13723486,107300.0,107290.0,0.78012399]
[1751321888749,1.34362541,107300.0,107290.0,0.186364]
[1751321888946,1.56022541,107300.0,107290.0,0.55942399]
[1751321889546,1.56022541,107300.0,107290.0,0.63222399]
[1751321889846,1.35383486,107300.0,107290.0,0.63222399]
[1751321891143,1.35383486,107300.0,107290.0,0.70762399]
[1751321891343,1.20953486,107300.0,107290.0,0.70762399]
[1751321891648,1.20953486,107300.0,107290.0,0.78272399]
[1751321892648,1.20953486,107300.0,107290.0,0.409664]
[1751321892849,1.20953486,107300.0,107290.0,0.78272399]
[1751321893848,1.20953486,107300.0,107290.0,0.70762399]
[1751321894049,1.27993486,107300.0,107290.0,0.70762399]
[1751321894244,1.27993486,107300.0,107290.0,0.259164]
[1751321894549,1.48632541,107300.0,107290.0,0.55942399]
[1751321897652,1.27993486,107300.0,107290.0,0.55942399]
[1751321897853,1.48632541,107300.0,107290.0,0.55942399]
[1751321902457,1.46119715,107300.0,107290.0,0.55942399]
[1751321902657,0.186364,107290.0,107280.0,0.2795567]
[1751321902854,0.99076484,107290.0,107280.0,0.65261669]
[1751321903748,0.99176484,107290.0,107280.0,0.65261669]
[1751321906960,0.99176484,107290.0,107280.0,0.60602219]
[1751321911062,0.78537429,107290.0,107280.0,0.60602219]
[1751321911263,0.99176484,107290.0,107280.0,0.67562219]
[1751321911665,0.78537429,107290.0,107280.0,0.67562219]
[1751321915670,0.99176484,107290.0,107280.0,0.67562219]
[1751321918773,0.78537429,107290.0,107280.0,0.67562219]
[1751321918975,0.99176484,107290.0,107280.0,0.67562219]
[1751321920869,0.78537429,107290.0,107280.0,0.67562219]
[1751321921068,0.99176484,107290.0,107280.0,0.67562219]
[1751321922073,0.78537429,107290.0,107280.0,0.67562219]
[1751321922675,0.78537429,107290.0,107280.0,0.3025622]
[1751321922876,0.78537429,107290.0,107280.0,0.67562219]
[1751321924974,0.99176484,107290.0,107280.0,0.67562219]
[1751321926174,0.91646484,107290.0,107280.0,0.67562219]
[1751321926375,0.91646484,107290.0,107280.0,0.74702219]
[1751321926578,0.71007429,107290.0,107280.0,0.74702219]
[1751321927179,0.63457429,107290.0,107280.0,0.74702219]
[1751321929779,0.84105698,107290.0,107280.0,0.95350488]
[1751321930176,0.84105698,107290.0,107280.0,0.74702219]
[1751321930374,0.84105698,107290.0,107280.0,0.95350488]
[1751321933195,0.58269298,107290.0,107280.0,0.95350488]
[1751321933482,0.76789029,107290.0,107280.0,1.15998757]
[1751321933682,0.96789029,107290.0,107280.0,1.15998757]
[1751321933882,1.17437298,107290.0,107280.0,0.95350488]
[1751321934082,1.36073698,107290.0,107280.0,0.95350488]
[1751321941882,1.36073698,107290.0,107280.0,0.67562219]
[1751321942089,1.58043698,107290.0,107280.0,0.67562219]
[1751321948398,1.58043698,107290.0,107280.0,0.88210488]
[1751321949797,1.58043698,107290.0,107280.0,0.60602219]
[1751321952598,1.58043698,107290.0,107280.0,0.2329622]
[1751321952791,1.58043698,107290.0,107280.0,0.60602219]
[1751321953197,1.37395429,107290.0,107280.0,0.60602219]
[1751321953395,0.1863813,107280.0,107270.0,0.1863837]
[1751321953595,1.13115697,107280.0,107270.0,0.55944369]
[1751321953791,0.92467428,107280.0,107270.0,0.63534369]
[1751321954499,0.92467428,107280.0,107270.0,0.63734369]
[1751321954999,0.92467428,107280.0,107270.0,0.63834369]
[1751321957003,0.71819159,107280.0,107270.0,0.63834369]
[1751321957202,0.92467428,107280.0,107270.0,0.63834369]
[1751321960205,0.85297428,107280.0,107270.0,0.84482638]
[1751321960400,0.80321298,107280.0,107270.0,0.98872638]
[1751321960600,1.12321298,107280.0,107270.0,0.98872638]
[1751321960801,1.30959428,107280.0,107270.0,0.98872638]
[1751321961002,1.37899428,107280.0,107270.0,0.98872638]
[1751321964506,1.17251159,107280.0,107270.0,0.98872638]
[1751321964805,1.37899428,107280.0,107270.0,0.98872638]
[1751321967405,1.19261298,107280.0,107270.0,0.98872638]
[1751321967704,1.37899428,107280.0,107270.0,0.98872638]
[1751321968404,0.34521029,107280.0,107270.0,0.98872638]
[1751321968599,0.59669029,107280.0,107270.0,0.98872638]
[1751321969812,0.02521029,107280.0,107270.0,0.98872638]
[1751321970102,1.33323369,107310.0,107300.0,0.1863466]
[1751321970301,2.48776398,107310.0,107300.0,0.76588928]
[1751321970608,2.48776398,107310.0,107300.0,0.63450659]
[1751321971009,1.91632398,107310.0,107300.0,0.84098928]
[1751321971206,2.49176398,107310.0,107300.0,0.84098928]
[1751321971908,2.49176398,107310.0,107300.0,0.63450659]
[1751321972307,2.56076398,107310.0,107300.0,0.55940659]
[1751321972812,2.56276398,107310.0,107300.0,0.55940659]
[1751321973810,2.56272315,107310.0,107300.0,0.55940659]
[1751321977314,1.70153106,107310.0,107300.0,0.55940659]
[1751321978315,1.77303106,107310.0,107300.0,0.55940659]
[1751321980510,1.82858315,107310.0,107300.0,0.55940659]
[1751321981712,1.77303106,107310.0,107300.0,0.55940659]
[1751321982013,1.79797069,107310.0,107300.0,0.55940659]
[1751321985915,1.59152883,107310.0,107300.0,0.55940659]
[1751321986110,1.79797069,107310.0,107300.0,0.55940659]
[1751321986512,1.79797069,107310.0,107300.0,0.63230659]
[1751321987516,1.59152883,107310.0,107300.0,0.63230659]
[1751321987717,0.84691069,107310.0,107300.0,0.63230659]
[1751321987913,1.41811069,107310.0,107300.0,0.77160659]
[1751321988516,1.13846883,107310.0,107300.0,0.97804845]
[1751321989221,1.13846883,107310.0,107300.0,0.77160659]
[1751321990214,1.20866883,107310.0,107300.0,0.77160659]
[1751321991611,0.45113963,107310.0,107300.0,0.77160659]
[1751321991818,1.02229963,107310.0,107300.0,0.97804845]
[1751321992120,0.95209963,107310.0,107300.0,0.97804845]
[1751321992323,0.95209963,107310.0,107300.0,0.77160659]
[1751321993324,0.38093963,107310.0,107300.0,0.77160659]
[1751321993525,0.95205963,107310.0,107300.0,0.77160659]
[1751321994618,0.95205963,107310.0,107300.0,0.97804845]
[1751321995221,0.95105963,107310.0,107300.0,0.97804845]
[1751321995724,1.15744804,107310.0,107300.0,0.977995]
[1751321996025,1.15644804,107310.0,107300.0,0.977995]
[1751322000131,0.95005963,107310.0,107300.0,0.977995]
[1751322000429,1.15644804,107310.0,107300.0,0.977995]
[1751322002928,1.34277724,107310.0,107300.0,0.77160659]
[1751322003127,1.34277724,107310.0,107300.0,0.977995]
[1751322003529,1.13638883,107310.0,107300.0,0.977995]
[1751322003731,1.34277724,107310.0,107300.0,0.977995]
[1751322006632,1.41497724,107310.0,107300.0,0.977995]
[1751322008537,1.22864804,107310.0,107300.0,0.977995]
[1751322009738,1.41497724,107310.0,107300.0,0.977995]
[1751322018842,1.48227724,107310.0,107300.0,0.977995]
[1751322019945,1.29594804,107310.0,107300.0,0.977995]
[1751322025347,1.08955963,107310.0,107300.0,0.977995]
[1751322025539,1.08955963,107310.0,107300.0,1.18438341]
[1751322025749,1.29594804,107310.0,107300.0,1.18438341]
[1751322026045,1.29594804,107310.0,107300.0,0.977995]
[1751322028944,1.29594804,107310.0,107300.0,1.18438341]
[1751322031149,1.29594804,107310.0,107300.0,0.977995]
[1751322034042,1.48227724,107310.0,107300.0,0.838695]
[1751322034354,1.55637724,107310.0,107300.0,0.838695]
[1751322035749,1.55637724,107310.0,107300.0,0.765795]
[1751322035949,0.98525724,107310.0,107300.0,0.765795]
[1751322036151,1.55585724,107310.0,107300.0,0.765795]
[1751322036351,1.55585724,107310.0,107300.0,0.55940659]
[1751322036552,1.55585724,107310.0,107300.0,0.765795]
[1751322042052,1.55585724,107310.0,107300.0,0.1863466]
[1751322045558,1.55585724,107310.0,107300.0,0.39273501]
[1751322046062,1.55585724,107310.0,107300.0,0.1863466]
[1751322047766,1.55585724,107310.0,107300.0,0.55940659]
[1751322048671,1.55585724,107310.0,107300.0,0.1863466]
[1751322050766,1.55585724,107310.0,107300.0,0.55940659]
[1751322054873,1.55585724,107310.0,107300.0,0.1863466]
[1751322061478,1.34946883,107310.0,107300.0,0.1863466]
[1751322061777,1.55585724,107310.0,107300.0,0.1863466]
[1751322062376,1.34946883,107310.0,107300.0,0.1863466]
[1751322062675,1.55585724,107310.0,107300.0,0.1863466]
[1751322064272,0.186364,107290.0,107280.0,0.29467347]
[1751322064574,1.03789609,107290.0,107280.0,1.12412187]
[1751322064776,1.17979609,107290.0,107280.0,1.12412187]
[1751322065079,1.17979609,107290.0,107280.0,1.19142187]
[1751322065377,1.17979609,107290.0,107280.0,0.98503346]
[1751322065572,1.25329609,107290.0,107280.0,0.61197347]
[1751322065879,1.51329609,107290.0,107280.0,0.1863609]
[1751322066380,0.1863813,107280.0,107270.0,0.5348763]
[1751322066575,0.7690218,107280.0,107270.0,0.90793629]
[1751322066768,1.0790218,107280.0,107270.0,0.90793629]
[1751322066976,0.1863987,107270.0,107260.0,0.35432095]
[1751322067176,1.55333079,107270.0,107260.0,0.35432095]
[1751322067378,1.79201079,107270.0,107260.0,0.35432095]
[1751322069081,1.76714711,107270.0,107260.0,0.35432095]
[1751322069581,1.79193465,107270.0,107260.0,0.35432095]
[1751322069977,1.58554624,107270.0,107260.0,0.42762095]
[1751322070178,1.79193465,107270.0,107260.0,0.42762095]
[1751322071478,1.79193465,107270.0,107260.0,0.43062095]
[1751322071680,1.76714711,107270.0,107260.0,0.43062095]
[1751322072680,1.79186043,107270.0,107260.0,0.43062095]
[1751322074081,1.76714711,107270.0,107260.0,0.43062095]
[1751322074283,1.69364711,107270.0,107260.0,0.50042095]
[1751322075880,1.69364711,107270.0,107260.0,0.70680936]
[1751322077585,1.69364711,107270.0,107260.0,0.50042095]
[1751322079684,1.4872587,107270.0,107260.0,0.50042095]
[1751322079886,1.69364711,107270.0,107260.0,0.50042095]
[1751322081288,1.69364711,107270.0,107260.0,0.57002095]
[1751322082685,1.69364711,107270.0,107260.0,0.94308094]
[1751322083185,1.62324711,107270.0,107260.0,0.94308094]
[1751322083685,1.4168587,107270.0,107260.0,0.94308094]
[1751322083878,1.62324711,107270.0,107260.0,0.94308094]
[1751322087692,1.44139294,107270.0,107260.0,0.94308094]
[1751322087884,1.64778135,107270.0,107260.0,0.94308094]
[1751322100092,1.71858135,107270.0,107260.0,0.08070995]
[1751322100297,0.3262539,107260.0,107250.0,0.186432]
[1751322100498,1.24016496,107260.0,107250.0,0.186432]
[1751322101801,1.24016496,107260.0,107250.0,0.190432]
[1751322102598,1.24016496,107260.0,107250.0,0.56349199]
[1751322102599,1.19355716,107260.0,107250.0,0.56349199]
[1751322102798,0.02453424,107260.0,107250.0,0.7698804]
[1751322103097,0.58959519,107270.0,107260.0,0.1864161]
[1751322103302,1.7657836,107270.0,107260.0,0.63057609]
[1751322104302,1.7657836,107270.0,107260.0,0.63157609]
[1751322104502,2.04447201,107270.0,107260.0,0.37405999]
[1751322104894,2.04447201,107270.0,107260.0,0.56047609]
[1751322105095,2.04447201,107270.0,107260.0,0.37405999]
[1751322105295,2.04447201,107270.0,107260.0,0.56047609]
[1751322107201,1.8380836,107270.0,107260.0,0.56047609]
[1751322107999,1.9083836,107270.0,107260.0,0.56047609]
[1751322111004,2.11477201,107270.0,107260.0,0.56047609]
[1751322111194,1.9083836,107270.0,107260.0,0.56047609]
[1751322113004,1.7657436,107270.0,107260.0,0.7668645]
[1751322113305,1.7657436,107270.0,107260.0,0.9815645]
[1751322114803,1.7657436,107270.0,107260.0,0.94432021]
[1751322115604,0.9571036,107270.0,107260.0,0.94432021]
[1751322115808,0.33130469,107270.0,107260.0,1.31446155]
[1751322116003,0.02489489,107270.0,107260.0,1.31446155]
[1751322116208,0.59501489,107270.0,107260.0,1.31446155]
[1751322116404,0.02489489,107270.0,107260.0,1.31446155]
[1751322116607,0.59501489,107270.0,107260.0,1.31446155]
[1751322118711,0.78141359,107270.0,107260.0,1.31446155]
[1751322119506,0.59501489,107270.0,107260.0,1.31446155]
[1751322124409,0.02489489,107270.0,107260.0,1.31446155]
[1751322124609,0.21129359,107270.0,107260.0,1.31446155]
[1751322125008,0.21129359,107270.0,107260.0,1.25446155]
[1751322125412,0.1863987,107270.0,107260.0,1.25446155]
[1751322128617,0.2112826,107270.0,107260.0,1.25446155]
[1751322128804,0.2212826,107270.0,107260.0,0.5962318]
[1751322129006,0.49731235,107270.0,107260.0,0.5232318]
[1751322129211,0.64171235,107270.0,107260.0,0.5232318]
[1751322129515,0.1864161,107260.0,107250.0,0.3262357]
[1751322129710,0.8981161,107260.0,107250.0,0.69929569]
[1751322130307,0.92299782,107260.0,107250.0,0.69929569]
[1751322131218,0.92299782,107260.0,107250.0,0.76829569]
[1751322132018,0.8981161,107260.0,107250.0,0.77129569]
[1751322133115,0.7117,107260.0,107250.0,0.97782544]
[1751322133315,0.6395,107260.0,107250.0,1.41112544]
[1751322133517,0.6395,107260.0,107250.0,1.36112544]
[1751322133713,0.8259161,107260.0,107250.0,0.84459569]
[1751322133918,0.8259161,107260.0,107250.0,1.41112544]
[1751322134318,0.8259161,107260.0,107250.0,0.77129569]
[1751322134620,0.85078711,107260.0,107250.0,0.70229569]
[1751322134818,1.13161686,107260.0,107250.0,0.70229569]
[1751322135216,0.92508711,107260.0,107250.0,0.70229569]
[1751322135618,0.92508711,107260.0,107250.0,0.3292357]
[1751322135818,0.92508711,107260.0,107250.0,0.70229569]
[1751322136014,1.20161686,107260.0,107250.0,0.1894192]
[1751322136218,1.21161686,107260.0,107250.0,0.1894192]
[1751322138224,1.45005686,107260.0,107250.0,0.1894192]
[1751322138417,1.73005686,107260.0,107250.0,0.1894192]
[1751322139222,1.37005686,107260.0,107250.0,0.1894192]
[1751322139528,1.45005686,107260.0,107250.0,0.1894192]
[1751322139826,1.24352711,107260.0,107250.0,0.1894192]
[1751322144926,1.24352711,107260.0,107250.0,0.1924192]
[1751322146722,1.52352711,107260.0,107250.0,0.56549339]
[1751322146922,1.73005686,107260.0,107250.0,0.56549339]
[1751322149623,1.73005686,107260.0,107250.0,0.1924334]
[1751322149828,1.73005686,107260.0,107250.0,0.56549339]
[1751322151930,1.43005686,107260.0,107250.0,0.56549339]
[1751322154531,1.49795686,107260.0,107250.0,0.56549339]
[1751322158835,1.79795686,107260.0,107250.0,0.56549339]
[1751322159039,1.50795686,107260.0,107250.0,0.56549339]
[1751322162333,1.43795686,107260.0,107250.0,0.56549339]
[1751322162534,1.50795686,107260.0,107250.0,0.56549339]
[1751322163739,1.71466171,107260.0,107250.0,0.56549339]
[1751322168144,1.71466171,107260.0,107250.0,0.63879339]
[1751322171645,0.48790441,107260.0,107250.0,0.84541069]
[1751322171838,0.98798441,107260.0,107250.0,0.98791069]
[1751322172446,0.41790441,107260.0,107250.0,0.98791069]
[1751322172751,0.98798441,107260.0,107250.0,0.98791069]
[1751322174252,0.98798441,107260.0,107250.0,0.78129339]
[1751322174441,1.05998441,107260.0,107250.0,0.78129339]
[1751322174645,1.26660171,107260.0,107250.0,0.78129339]
[1751322178154,1.05998441,107260.0,107250.0,0.78129339]
[1751322178353,1.05998441,107260.0,107250.0,0.98791069]
[1751322179849,0.02487101,107260.0,107250.0,1.34791069]
[1751322180049,0.86135209,107280.0,107270.0,0.1863987]
[1751322180250,1.40773339,107280.0,107270.0,0.76607599]
[1751322180454,1.40773339,107280.0,107270.0,0.77405869]
[1751322180455,2.39104799,107280.0,107270.0,0.77405869]
[1751322180756,2.18443069,107280.0,107270.0,0.77405869]
[1751322181551,2.25853069,107280.0,107270.0,0.77405869]
[1751322181748,2.25845234,107280.0,107270.0,0.77405869]
[1751322181943,2.25945234,107280.0,107270.0,0.77405869]
[1751322183558,2.20390025,107280.0,107270.0,0.77405869]
[1751322184859,1.1668,107280.0,107270.0,0.77405869]
[1751322185156,0.361,107280.0,107270.0,1.30059764]
[1751322185351,0.9372,107280.0,107270.0,1.30059764]
[1751322187060,0.361,107280.0,107270.0,1.30059764]
[1751322188067,0.001,107280.0,107270.0,1.94357659]
[1751322188362,0.001,107300.0,107290.0,0.1863639]
[1751322188564,0.371,107300.0,107290.0,1.13496284]
[1751322188762,0.371,107300.0,107290.0,1.35156284]
[1751322189559,0.376,107300.0,107290.0,1.35156284]
[1751322190553,0.376,107300.0,107290.0,1.42430908]
[1751322191465,0.378,107300.0,107290.0,1.42430908]
[1751322192662,0.378,107300.0,107290.0,1.05224909]
[1751322192862,0.378,107300.0,107290.0,1.42430908]
[1751322193658,0.008,107300.0,107290.0,1.42430908]
[1751322193861,0.198,107300.0,107290.0,1.42430908]
[1751322196065,0.198,107300.0,107290.0,1.61070908]
[1751322196365,0.008,107300.0,107290.0,1.61070908]
[1751322198154,0.008,107300.0,107290.0,1.42430908]
[1751322198361,0.008,107300.0,107290.0,1.99914908]
[1751322199661,0.008,107300.0,107290.0,2.18554908]
[1751322202869,0.008,107300.0,107290.0,1.99914908]
[1751322207377,0.008,107300.0,107290.0,1.21777013]
[1751322207682,0.028,107300.0,107290.0,1.42430908]
[1751322208480,0.1008,107300.0,107290.0,1.42430908]
[1751322208678,0.1008,107300.0,107290.0,1.27940908]
[1751322208875,0.1683,107300.0,107290.0,0.63117013]
[1751322209384,0.1683,107300.0,107290.0,0.83770908]
[1751322216185,0.19307453,107300.0,107290.0,0.83770908]
[1751322216386,0.19307453,107300.0,107290.0,1.21770908]
[1751322216583,0.1008,107300.0,107290.0,1.28700908]
[1751322216782,0.1008,107300.0,107290.0,1.35490908]
[1751322217182,0.1255882,107300.0,107290.0,1.35490908]
[1751322218481,0.1255882,107300.0,107290.0,0.83770908]
[1751322218682,0.1942882,107300.0,107290.0,0.83770908]
[1751322219786,0.1942882,107300.0,107290.0,0.63117013]
[1751322221185,0.3806347,107300.0,107290.0,0.63117013]
[1751322221388,0.1942882,107300.0,107290.0,0.63117013]
[1751322225986,0.1942882,107300.0,107290.0,0.83770908]
[1751322226688,0.1942882,107300.0,107290.0,0.90810908]
[1751322228188,0.1942882,107300.0,107290.0,1.21810908]
[1751322228389,0.1942882,107300.0,107290.0,0.90810908]
[1751322232594,0.1255882,107300.0,107290.0,0.90810908]
[1751322234091,0.1255882,107300.0,107290.0,0.98130908]
[1751322238498,0.1255882,107300.0,107290.0,1.04950908]
[1751322247406,0.1255882,107300.0,107290.0,0.25911014]
[1751322247407,0.51847375,107300.0,107290.0,0.25911014]
[1751322247599,0.65667375,107300.0,107290.0,0.25911014]
[1751322247795,0.65658687,107300.0,107290.0,0.46556221]
[1751322248106,0.47024027,107300.0,107290.0,0.46556221]
[1751322248301,0.47024027,107300.0,107290.0,0.53896221]
[1751322248502,0.65658677,107300.0,107290.0,0.53896221]
[1751322248808,0.65658677,107300.0,107290.0,0.33251014]
[1751322249106,0.65658677,107300.0,107290.0,0.53896221]
[1751322249600,0.86303884,107300.0,107290.0,0.25911014]
[1751322251108,0.84303884,107300.0,107290.0,0.25911014]
[1751322251311,1.17303884,107300.0,107290.0,0.25911014]
[1751322251808,0.96660045,107300.0,107290.0,0.25911014]
[1751322257108,0.7601347,107300.0,107290.0,0.25911014]
[1751322257307,0.96660045,107300.0,107290.0,0.25911014]
[1751322259914,0.7601347,107300.0,107290.0,0.25911014]
[1751322260108,0.7601347,107300.0,107290.0,0.33251014]
[1751322260304,1.3306147,107300.0,107290.0,0.33251014]
[1751322261019,0.1727882,107300.0,107290.0,0.91103588]
[1751322261219,0.9295747,107300.0,107290.0,1.05393588]
[1751322261519,0.9295747,107300.0,107290.0,0.84747013]
[1751322262015,1.1488747,107300.0,107290.0,0.84747013]
[1751322265023,1.35534045,107300.0,107290.0,0.84747013]
[1751322265719,1.1488747,107300.0,107290.0,0.84747013]
[1751322271026,1.58534045,107300.0,107290.0,0.07274624]
[1751322271330,1.72511015,107300.0,107290.0,0.1863639]
[1751322271523,1.49511015,107300.0,107290.0,0.1863639]
[1751322271829,1.49511015,107300.0,107290.0,0.25985169]
[1751322272524,1.35511015,107300.0,107290.0,0.25985169]
[1751322272725,1.73511015,107300.0,107290.0,0.25985169]
[1751322273226,1.35511015,107300.0,107290.0,0.25985169]
[1751322273426,1.41192935,107300.0,107290.0,0.25985169]
[1751322273927,1.36534045,107300.0,107290.0,0.33175169]
[1751322275126,1.1588747,107300.0,107290.0,0.33175169]
[1751322275829,1.1588747,107300.0,107290.0,0.40395169]
[1751322278228,0.9022282,107300.0,107290.0,0.40395169]
[1751322278529,0.7532282,107300.0,107290.0,1.05307743]
[1751322278929,0.7532282,107300.0,107290.0,0.84661168]
[1751322279531,0.9395747,107300.0,107290.0,0.84661168]
[1751322281931,0.7532282,107300.0,107290.0,1.05307743]
[1751322282231,0.9395747,107300.0,107290.0,1.05307743]
[1751322283131,0.9395747,107300.0,107290.0,0.84661168]
[1751322283337,0.7532282,107300.0,107290.0,0.84661168]
[1751322284836,0.7532282,107300.0,107290.0,1.05307743]
[1751322285037,0.6032282,107300.0,107290.0,1.42307743]
[1751322285237,0.6031482,107300.0,107290.0,1.42307743]
[1751322286129,0.0327882,107300.0,107290.0,1.42307743]
[1751322290637,0.008,107300.0,107290.0,1.42307743]
[1751322292238,0.03285485,107300.0,107290.0,1.42307743]
[1751322293947,0.0722,107320.0,107310.0,0.1863292]
[1751322294243,0.4422,107320.0,107310.0,0.76485494]
[1751322294443,0.4422,107320.0,107310.0,0.97425494]
[1751322294841,0.4422,107320.0,107310.0,0.76778919]
[1751322295242,0.4552,107320.0,107310.0,0.76778919]
[1751322295945,0.5294,107320.0,107310.0,0.62648919]
[1751322296145,0.5991,107320.0,107310.0,0.62648919]
[1751322298245,0.7854119,107320.0,107310.0,0.62648919]
[1751322298850,0.99187765,107320.0,107310.0,0.62648919]
[1751322299150,0.80556575,107320.0,107310.0,0.62648919]
[1751322300857,0.5991,107320.0,107310.0,0.62648919]
[1751322302761,0.4552,107320.0,107310.0,0.62648919]
[1751322303163,0.4552,107320.0,107310.0,0.77248919]
[1751322303361,0.4552,107320.0,107310.0,0.97895494]
[1751322306065,0.47995255,107320.0,107310.0,0.97895494]
[1751322307766,0.68630737,107320.0,107310.0,0.97884401]
[1751322309661,0.87261927,107320.0,107310.0,0.97884401]
[1751322309867,0.68630737,107320.0,107310.0,0.83284401]
[1751322310069,0.83140737,107320.0,107310.0,0.83284401]
[1751322312566,0.83140737,107320.0,107310.0,0.76474401]
[1751322313369,1.22407409,107320.0,107310.0,0.76474401]
[1751322315168,1.22407409,107320.0,107310.0,0.55838919]
[1751322315563,0.83140737,107320.0,107310.0,0.55838919]
[1751322315969,0.83140737,107320.0,107310.0,0.76474401]
[1751322318979,1.01771927,107320.0,107310.0,0.76474401]
[1751322319481,0.83140737,107320.0,107310.0,0.76474401]
[1751322321482,0.62505255,107320.0,107310.0,0.5736255]
[1751322321780,0.62505255,107320.0,107310.0,0.77998032]
[1751322322082,1.40136737,107320.0,107310.0,0.84788032]
[1751322322782,1.19501255,107320.0,107310.0,0.84788032]
[1751322323086,1.39936737,107320.0,107310.0,0.84788032]
[1751322323383,1.39536737,107320.0,107310.0,0.84788032]
[1751322323585,1.32446737,107320.0,107310.0,0.84788032]
[1751322323982,0.68030737,107320.0,107310.0,0.91908032]
[1751322324180,1.18038737,107320.0,107310.0,0.98838032]
[1751322327388,0.97403255,107320.0,107310.0,0.98838032]
[1751322327587,1.18038737,107320.0,107310.0,0.98838032]
[1751322328185,1.25008737,107320.0,107310.0,0.98838032]
[1751322329895,1.25008737,107320.0,107310.0,0.7820255]
[1751322330191,1.25008737,107320.0,107310.0,0.98838032]
[1751322340503,1.04373255,107320.0,107310.0,0.98838032]
[1751322340802,1.25008737,107320.0,107310.0,0.98838032]
[1751322342004,1.25008737,107320.0,107310.0,0.7820255]
[1751322342210,1.25008737,107320.0,107310.0,0.98838032]
[1751322342603,1.25008737,107320.0,107310.0,0.61632033]
[1751322342806,1.25008737,107320.0,107310.0,0.98838032]
[1751322346710,0.67780737,107320.0,107310.0,0.98838032]
[1751322346913,0.40175255,107320.0,107310.0,2.13477514]
[1751322347115,0.40175255,107320.0,107310.0,1.92842032]
[1751322347416,0.40175255,107320.0,107310.0,1.55842032]
[1751322347616,0.40175255,107320.0,107310.0,1.87842032]
[1751322356725,0.40175255,107320.0,107310.0,1.3520655]